{"text_format":"1","workbook":"xlsx","n_sheets":1,"sheets":["DCI-MUN-RM-IM-LP-006-2025"],"not_rendered":{"charts":0,"images":2,"macros":1,"external_links":2,"defined_names":135,"comments":0,"pivot_tables":0},"unopened":[],"bounds":{"document_bytes":16777216,"sheet_cells":100000,"rows_first":2000,"rows_last":500,"rows_between":2000,"halvings":0,"cell_chars":16384,"cell_head_chars":4096},"cells_cut":0,"cells_raw":0,"read":"whole","date_system":"1900"}

{"sheet":"DCI-MUN-RM-IM-LP-006-2025","index":0,"n_rows":213,"n_cols":8,"rows_kept":213,"cut":false,"hidden":false,"merged":[[1,3,1,6],[2,3,5,6],[7,2,9,2],[10,3,10,6],[11,2,12,2],[11,3,12,6],[11,7,12,7],[14,1,14,7],[17,0,17,7],[210,1,210,2],[211,1,212,4]]}
[]
[null,null,"MUNICIPIO DE ZAPOPAN, JALISCO","LICITACIÓN PÚBLICA No."]
[null,null,"DIRECCIÓN DE CONSERVACION DE INMUEBLES","DCI-MUN-RM-IM-LP-006-2025"]
[null,null,"UNIDAD DE PRESUPUESTOS Y CONTRATACION DE OBRA PUBLICA"]
[]
[]
[null,null,"DESCRIPCIÓN GENERAL DE LOS TRABAJOS:",null,null,"FECHA DE INICIO:"]
[null,null,"Rehabilitación de sanitarios, vestidores y muro de contención, y obra complementaria en el Rastro Municipal, Zapopan, Jalisco.",null,null,"FECHA DE TERMINACIÓN:"]
[null,null,null,null,null,"PLAZO DE EJECUCIÓN:"]
[null,null,null,null,null,"FECHA DE PRESENTACIÓN:"]
[null,null,"RAZÓN SOCIAL DEL LICITANTE:","NOMBRE, CARGO Y FIRMA DEL LICITANTE",null,null,null,"DOCUMENTO"]
[null,null,null,null,null,null,null,"PE1"]
[]
[]
[null,"CATÁLOGO DE CONCEPTOS"]
[]
[null,"CLAVE","DESCRIPCIÓN ","UNIDAD","CANTIDAD","PRECIO UNITARIO ($)","PRECIO UNITARIO ($) CON LETRA","IMPORTE ($) M. N."]
[]
[null,"A","VESTIDORES Y BAÑOS",null,0,null,null,{"$f":"H20+H36+H71+H84+H89+H105+H132+H144","v":0}]
[null,"A.1","PRELIMINARES Y DEMOLICIONES",null,null,null,null,{"$f":"SUM(H21:H35)","v":0}]
[null,"DOPI-001","TRAZO Y NIVELACIÓN CON EQUIPO TOPOGRÁFICO DEL TERRENO ESTABLECIENDO EJES Y REFERENCIAS Y BANCOS DE NIVEL, INCLUYE: CRUCETAS, ESTACAS, HILOS, MARCAS Y TRAZOS CON CALHIDRA, MANO DE OBRA, EQUIPO Y HERRAMIENTA.","M2",398.48,null,null,{"$f":"E21*F21","v":0}]
[null,"DOPI-002","DESMONTAJE DE HERRERIA EN GENERAL EMPOTRADA O ANCLADA CON RECUPERACION, INCLUYE: DEMOLICION O RASPADO DE MORTERO O CONCRETO, ACOPIO DEL MATERIAL PARA SU RETIRO POSTERIOR, MANO DE OBRA Y ANDAMIOS.","M2",172.67,null,null,{"$f":"E22*F22","v":0}]
[null,"DOPI-003","DESMONTAJE DE HERRERIA DE ALUMINIO CON CRISTAL SIN RECUPERACION, INCLUYE: DEMOLICION O RASPADO DE MORTERO O CONCRETO, ACOPIO DEL MATERIAL A UNA DISTANCIA NO MAYOR A 20 M. PARA SU RETIRO POSTERIOR, MANO DE OBRA Y ANDAMIOS.","M2",37.19,null,null,0]
[null,"DOPI-004","DESMONTAJE DE MAMPARAS SANITARIAS  CON RECUPERACIÓN,  INCLUYE: ACARREOS DENTRO DE LA OBRA Y POSTERIORMENTE DONDE INDIQUE SUPERVISIÓN FUERA DE LA OBRA, MANO DE OBRA, EQUIPO Y HERRAMIENTA.","M2",60.38,null,null,0]
[null,"DOPI-005","DEMOLICIÓN POR MEDIOS MECÁNICOS DE MURO DE LADRILLO DE LAMA Y/O BLOCK A SOGA Y/O TEZÓN, INCLUYE: HERRAMIENTA, DEMOLICIÓN DE DALAS, CADENAS Y CASTILLOS, RECUBRIMIENTOS, APLANADOS, MANO DE OBRA, RETIRO Y ACARREO DEL MATERIAL A BANCO DE OBRA PARA SU POSTERIOR RETIRO Y LIMPIEZA DEL ÁREA DE LOS TRABAJOS, MANO DE OBRA, EQUIPO Y HERRAMIENTA.","M3",45.35,null,null,0]
[null,"DOPI-006","DEMOLICIÓN DE ENTREPISO, RETIRO DE BOVEDA, CON RECUPERACION DE ACERO DE VIGUERIA, DE FORMA MANUAL Y/O MECANICA, USANDO CORTE CON DISCO, MARRO Y CINCEL, INCLUYE: ACARREO Y APILE EN BANCO DE OBRA, LIMPIEZA GRUESA, MATERIALES, MANO DE OBRA, EQUIPO Y HERRAMIENTA.","M2",71.75,null,null,0]
[null,"DOPI-007","DEMOLICION DE FIRME DE HORMIGON, POR MEDIOS MANUALES, CON UN ESPESOR DE HASTA 20 CMS. CUALQUIER ALTURA Y/O NIVEL, INCLUYE: ACARREO DEL MATERIAL A BANCO DE OBRA PARA SU POSTERIOR RETIRO, MATERIALES, MANO DE OBRA, EQUIPO Y HERRAMIENTA. VOLUMEN MEDIDO EN BANCO.","M2",71.75,null,null,0]
[null,"DOPI-008","DEMOLICIÓN POR CUALQUIER MEDIO DE APLANADO EN MURO Y/O BOVEDA HASTA 4.50 MTS DE ALTURA, EN INTERIOR O EXTERIOR. INCLUYE: ANDAMIOS, HERRAMIENTA, MANO DE OBRA, EQUIPO, ACARREO INTERNO Y APILE A UNA DISTANCIA NO MAYOR A 20 M. PARA SU POSTERIOR  RETIRO.","M2",292.22000000000003,null,null,0]
[null,"DOPI-009","DEMOLICIÓN  DE PISO PORCELANICO Y PEGAPISO EXISTENTE, SIN RECUPERACIÓN POR MEDIOS MANUALES, INCLUYE: ACARREO DEL MATERIAL A BANCO DE OBRA A UNA DISTANCIA NO MAYOR A 20 M. PARA SU POSTERIOR RETIRO, MATERIALES, MANO DE OBRA, EQUIPO Y HERRAMIENTA. VOLUMEN MEDIDO EN BANCO.","M2",326.7,null,null,0]
[null,"DOPI-010","DEMOLICION DE AZULEJOS, MORTERO Y ADHESIVO EN MUROS DE BAÑOS, SIN RECUPERACION, DE FORMA MANUAL Y/O MECANICA, USANDO CORTE CON DISCO, ROTOMARTILLO, MARRO Y CINCEL, REALIZANDO EL DESPRENDIMIENTO TOTAL, NIVELANDO Y LIMPIANDO LA SUPERFICIE, INCLUYE: ACARREO, APILE DE MATERIAL, MANO DE OBRA, EQUIPO Y HERRAMIENTA. VOLUMEN MEDIDO EN BANCO.","M2",292.22000000000003,null,null,0]
[null,"DOPI-011","DESMONTAJE SIN RECUPERACION DE W.C., LAVABO Y/O MINGITORIO. INCLUYE: TAPONAMIENTO CON TAPON CAPA DE 1/2\" Y DESCONEXION DE LA RED DE AGUA Y SANITARIA Y ACCESORIOS.","PZA",53,null,null,0]
[null,"DOPI-012","DESMONTAJE Y RETIRO DE IMPERMEABILIZANTE VIEJO DE MEMBRANA Y/O CARPETA EN AZOTEA, POR MEDIOS MANUALES Y/O MECANICOS, HASTA DESPRENDER LECHADA E IMPERMEABILIZACION PLASTICA, A CUALQUIER ALTURA Y/O NIVEL, INCLUYE: ACARREO Y APILE EN BANCO DE OBRA A UNA DISTANCIA NO MAYOR A 20 M., LIMPIEZA GRUESA, MATERIALES, MANO DE OBRA, EQUIPO Y HERRAMIENTA.","M2",126.56,null,null,0]
[null,"DOPI-013","DEMOLICIÓN  DE LADRILLO DE AZOTEA Y MORTERO CON UN ESPESOR DE HASTA 5 CMS, INCLUYE: ACARREOS INTERNOS, MANO DE OBRA, EQUIPO, HERRAMIENTA Y APILE DEL MATERIAL DONDE INDIQUE SUPERVISIÓN.","M2",126.56,null,null,0]
[null,"DOPI-014","DEMOLICIÓN DE CONCRETO SIMPLE EN BANQUETAS, POR MEDIOS MECÁNICOS, INCLUYE: ACARREO DEL MATERIAL A BANCO DE OBRA PARA SU POSTERIOR RETIRO Y LIMPIEZA DEL ÁREA DE LOS TRABAJOS, MANO DE OBRA, EQUIPO Y HERRAMIENTA.","M3",50.42,null,null,0]
[null,"DOPI-015","APUNTALAMIENTO A BASE DE PIE DERECHO METALICO AJUSTABLE PARA UNA ALTURA MAXIMA DE 3.80 MTS. EN LOSA EXISTENTE. INCLUYE: LA RENTA DEL PUNTAL Y SU COLOCACION.","M2",42.26,null,null,0]
[null,"A.2","ALBAÑILERIA",0,0,null,null,{"$f":"SUM(H37:H70)","v":0}]
[null,"DOPI-016","SUMINISTRO Y COLOCACIÓN DE PUERTA DE TAMBOR DE PINO, DE 0.90 M X 2.10 M, ACABADO CON LACA, INCLUYE: ACARREO, CORTES, SUMINISTRO, MARCO Y CHAMBRANAS DE TRIPLAY, CHAPA DE INTERCOMUNICACIÓN, BISAGRAS, MATERIALES, MANO DE OBRA, EQUIPO, HERRAMIENTA Y TODO LO NECESARIO PARA SU CORRECTA EJECUCION.","PZA",2,null,null,{"$f":"E37*F37","v":0}]
[null,"DOPI-017","AFINE Y CONFORMACIÓN DE TERRENO NATURAL COMPACTADO EN CAPAS NO MAYORES DE 20 CM DE ESPESOR CON EQUIPO DE IMPACTO, COMPACTADO AL 90% ± 2 DE SU P.V.S.M., PRUEBA AASHTO ESTANDAR, CBR DEL 5% MÍNIMO, INCLUYE: CONFORMACIÓN, MANO DE OBRA, EQUIPO Y HERRAMIENTA.","M2",253.3,null,null,0]
[null,"DOPI-018","SUMINISTRO Y COLOCACIÓN DE CONCRETO HECHO EN OBRA F'C=250 KG/CM2 RESISTENCIA NORMAL, INCLUYE: MATERIALES, COLADO, VIBRADO, DESCIMBRA, CURADO,  MANO DE OBRA, EQUIPO Y HERRAMIENTA.","M3",9.3000000000000007,null,null,0]
[null,"DOPI-019","MANTENIMIENTO DE BAJANTES PLUVIALES DE 3.00 MTS APROXIMADAMENTE, INCLUYE: DESASOLVE DE BAJANTE, RECIBIR BAJANTE A LOSA CORRECTAMENTE, SELLADO EN PERIMETRO DE BAJANTE, LIMPIEZA Y TODO LO NECESARIO PARA SU CORRECTA EJECUCION.","PZA",6,null,null,0]
[null,"DOPI-020","EXCAVACIÓN POR MEDIOS MECÁNICOS EN MATERIAL TIPO II, DE 0.00 A -2.00 M DE PROFUNDIDAD, INCLUYE: ACARREO DEL MATERIAL A BANCO DE OBRA A UNA DISTANCIA NO MAYOR A 20 M. PARA SU POSTERIOR RETIRO, MANO DE OBRA, EQUIPO Y HERRAMIENTA. (MEDIDO EN TERRENO NATURAL POR SECCIÓN).","M3",98.89,null,null,0]
[null,"DOPI-021","CIMENTACIÓN A BASE DE SUELO-CEMENTO, A BASE DE MATERIAL DE BANCO, EN PROPORCIÓN DE 1:10, COMPACTADO CON COMPACTADOR DE IMPACTO EN CAPAS NO MAYORES DE 20 CM AL 95% DE SU P.V.S.M, PRUEBA AASHTO ESTÁNDAR, INCLUYE: HERRAMIENTA, SUMINISTRO DE AGUA PARA LOGRAR HUMEDAD ÓPTIMA, MEZCLADO, TENDIDO, EQUIPO, PRUEBAS DE COMPACTACIÓN, EQUIPO Y MANO DE OBRA. (MEDIDO EN TERRENO NATURAL POR SECCIÓN SEGÚN PROYECTOS.) TRABAJOS EN ESPACIO REDUCIDO.","M3",24.57,null,null,0]
[null,"DOPI-022","CIMIENTO DE MAMPOSTERÍA DE PIEDRA BRAZA, ASENTADA CON MORTERO CEMENTO-ARENA  EN PROPORCIÓN 1:3, INCLUYE: MATERIALES, DESPERDICIOS, HERRAMIENTAS, LIMPIEZA, MANO DE OBRA Y ACARREO DE MATERIALES AL SITIO DE SU UTILIZACIÓN.","M3",33.049999999999997,null,null,0]
[null,"DOPI-023","MURO DE BLOCK DE JALCRETO  A TEZON 11X14X28 CM. ASENTADO CON MORTERO CEMENTO-ARENA 1:3, HASTA  3 HILAS PARA NIVELACIÓN DE CIMENTACIÓN DE SUELO-CEMENTO. INCLUYE: MATERIALES, MANO DE OBRA Y HERRAMIENTA.","M",438.95,null,null,0]
[null,"DOPI-024","RELLENO EN CEPAS O MESETAS CON MATERIAL DE BANCO, COMPACTADO AL 90% ± 2 DE SU P.V.S.M., PRUEBA AASHTO ESTANDAR, CBR DEL 5% MÍNIMO, EN CAPAS NO MAYORES DE 20 CM, INCLUYE: INCORPORACIÓN DE AGUA NECESARIA, MANO DE OBRA, EQUIPO Y HERRAMIENTA, MEDIDO EN TERRENO NATURAL POR SECCIÓN SEGÚN PROYECTOS.","M3",49.21,null,null,0]
[null,"DOPI-025","BOVEDA DE CUÑA CON LADRILLO DE LAMA DE  5X11X22 CM, JUNTEADA CON MORTERO CMENTO-ARENA DE RIO EN PROPORCION 1:4, INCLUYE: HORMIGON DE 5 CM. DE ESPESOR, LECHADA DE CEMENTO GRIS, MATERIAL, MANO DE O BRA, ACARREOS, DESPERDICIOS, ANDAMIIOS, MANO DE OBRA Y HERRAMIENTA MENOR","M2",416.18,null,null,0]
[null,"DOPI-026","CONSTRUCCION DE RELLENO PARA NIVELACION DE AZOTEA  CON HORMIGON DE CAL-JAL-ARENA AMARILLA EN PROP. 1:2:6 Y UN ESPESOR DE 10 CM. PROMEDIO. INCLUYE: IMPERMEABILIZANTE INTEGRAL A RAZON DE 0.20 KG POR M2, LECHADA DE CEMENTO GRIS, MATERIAL Y MANO DE OBRA.","M2",416.18,null,null,0]
[null,"DOPI-027","SUMINISTRO E INSTALACIÓN  DE ZAVALETA CON LADRILLO DE AZOTEA 17 X 17 CM,  ASENTADO CON MORTERO CEMENTO-ARENA 1:4, INCLUYE:  MATERIALES, ACARREOS, ELEVACIÓN, CORTES, DESPERDICIOS, TRASLAPES, MANO DE OBRA. EQUIPO Y HERRAMIENTA","M",139.19999999999999,null,null,0]
[null,"DOPI-028","SUMINISTRO E INSTALACIÓN DE LADRILLO DE AZOTEA CON MEDIDAS  DE 17 X 17 CMS ASENTADO CON MORTERO CEMENTO-ARENA 1:4, INCLUYE:  MATERIALES, ACARREOS, ELEVACIÓN, CORTES, DESPERDICIOS, TRASLAPES, MANO DE OBRA. EQUIPO Y HERRAMIENTA","M2",261.67,null,null,0]
[null,"DOPI-029","LECHADA EN LADRILLO DE AZOTEA Y/O HORMIGON, CON CEMENTO ARENA DE RIÓ Y FESTERGRAL (IMPERMEABILIZANTE INTEGRAL), INCLUYE: MATERIALES, MANO DE OBRA. EQUIPO Y HERRAMIENTA, ACARREOS, ELEVACIÓN, CORTES, DESPERDICIOS, TRASLAPES","M2",523.33000000000004,null,null,0]
[null,"DOPI-030","IMPERMEABILIZACION SOBRE LADRILLO DE AZOTEA, MCA. ACRITON PLUS, EN 2 CAPAS A RAZON DE 1 CAPA DE ACRITON SIN DILUIR CON RENDIMIENTO DE 0.5 LT/M2 DEJANDO SECAR 24 HR. Y UNA 2a. CAPA EN SENTIDO CRUZADO A LA PRIMERA CON RENDIMIENTO DE 0.5 LT/M2.  INCLUYE: RASPADO Y PREPARACION DE LA SUPERFICIE, CON GARANTIA DE 6 AÑOS.","M2",261.67,null,null,0]
[null,"DOPI-031","SUMINISTRO Y APLICACIÓN DE PASTA DE PERDURAPLAST O SIMILAR EN  MUROS Y BOVEDAS INCLUYE: PREPARACION DE LA SUPERFICIE,  SELLADOR VINILICO ANDAMIOS, MATERIALES Y DESPERDICIOS, MANO DE OBRA, HERRAMIENTA Y EQUIPO","M2",259.87,null,null,0]
[null,"DOPI-032","SUMINISTRO E INSTALACIÓN DE MURO DE TABLAROCA  2 CARAS DE 14.28 CMS DE ESPESOR ,CON AISLAMIENTO TERMO-ACÚSTICO FABRICADO CON FIBRA DE VIDRIO DE BAJA DENSIDAD,  CAPA EXTERIOR EN TABLAROCA ESTANDAR BASTIDOR METALICO 9.20 @ 61 CMS INCLUYE: BOQUILLA, REFUERZO PERIMETRAL, MATERIAL DE FIJACIÓN (CLAVO Y FULMINANTE), SELLADO DE JUNTAS CON PERFACINTA Y PASTA REDIMIX, ACARREOS, CORTES, DESPERDICIOS, ELEVACIÓN, HERRAMIENTA, MANO DE OBRA Y EQUIPO.","M2",7.53,null,null,0]
[null,"DOPI-033","SUMINISTRO Y COLOCACION DE MURO DE DUROCK RESISTENTE A LA HUMEDAD DE 12CM DE ESPESOR DOBLE CARA, CONCEPTO INCLUYE: MANO DE OBRA, HERRAMIENTA, TORNILLOS, ANCLAS, METALES, REFUERZOS, ANCLAS, CLAVOS, CINTA, BASECOAT, EQUIPO, MANO DE OBRA ESPECIALIZADA Y HERRAMIENTA.","M2",10.02,null,null,0]
[null,"DOPI-034","APLICACION DE ZARPEO EN MURO Y/O BOVEDAS, CON MORTERO CEMENTO-ARENA DE RIO PROPORCION 1:3, CUALQUIER ALTURA Y/O NIVEL, INCLUYE: ACARREOS, DESPERDICIOS, ANDAMIOS, PLOMEADO, NIVELADO, REGLEADO, RECORTES, MATERIALES, MANO DE OBRA, EQUIPO, HERRAMIENTA.","M2",960.95,null,null,0]
[null,"DOPI-035","APLANADO DE 2.50 CM DE ESPESOR EN MURO INTERIOR Y/O EXTERIOR A 3.50 M DE ALTURA  CON MORTERO CEMENTO-ARENA 1:4, ACABADO PULIDO O APALILLADO, INCLUYE: MATERIALES, ACARREOS, DESPERDICIOS, MANO DE OBRA, ANDAMIOS, PLOMEADO, NIVELADO, REGLEADO, RECORTES, MANO DE OBRA, EQUIPO Y HERRAMIENTA.","M2",948.99,null,null,0]
[null,"DOPI-036","BARRA PARA EMPOTRAR LAVABOS DE 0.60 MTS. DE ANCHO Y 0.10 MTS. DE ESPESOR CON CONCRETO DE F'c=150 KG/CM2 ARMADA CON VARILLA DE 3/8\" A CADA 15 CM. AMBOS SENTIDOS ACABADO APARENTE. INCLUYE: SUMINISTRO Y ELABORACION, TRAZO, NIVELACION, CIMBRA, DESCIMBRA, MATERIAL Y MANO DE OBRA.","M",11.93,null,null,0]
[null,"DOPI-037","SUMINISTRO Y ELABORACION DE FINO DE MORTERO CEMENTO ARENA DE RIO 1:3 PARA RECIBIR RECUBRIMIENTO EN PISO, CON ESPESOR DE 3 CM, INCLUYE: MANO DE OBRA, MATERIALES, DESPERDICIOS, HERRAMIENTAS, EQUIPO Y ACARREOS.","M2",226.77,null,null,0]
[null,"DOPI-038","SUMINISTRO Y COLOCACIÓN DE FIRME DE 8 CM DE ESPESOR CON MORTERO CEMENTO ARENA PROP. 1:3, ACABADO COMÚN, INCLUYE: DESCIMBRA, COLADO, MATERIALES, DESPERDICIOS,  MANO DE OBRA, EQUIPO Y HERRAMIENTA.","M2",451.76,null,null,0]
[null,"DOPI-039","SUMINISTRO , HABILITADO Y COLOCACION DE HERRERIA ESTRUCTURAL PARA ESCALERAS, PUERTAS, VENTANAS, CANCELES Y PASAMANOS, INCLUYE: FLETES, ACARREOS, CORTES, DESPERDICIOS, SOLDADURAS, PINTURA ANTICORROSIVA ( PRIMER ), MATERIAL Y MANO DE OBRA","KG",14.79,null,null,0]
[null,"DOPI-040","MURO DE SOGA CON BOCK DE JALCRETO  11X14X28 CM. DE 14 CM. DE ESPESOR ASENTADO CON MORTERO CEMENTO ARENA PROP. 1:4. INCLUYE: SUMINISTRO Y ELABORACION, ACARREOS,  ANDAMIOS, EQUIPO, MATERIALES, HERRAMIENTA Y MANO DE OBRA.","M2",699.82,null,null,0]
[null,"DOPI-041","ANCLAJE DE CASTILLO EN CIMENTACIÓN  DE 0.40X0.40X0.40 MTS. CON CONCRETO F´c=150KG/CM2 H.O. INCLUYE: CIMBRA, MATERIALES, MANO DE OBRA,  HERRAMIENTA Y EQUIPO.","PZA",106,null,null,0]
[null,"DOPI-042","CASTILLOS  DE  SECCIÓN 15X20  CM.CON CONCRETO F'C=150 KG. CM2 Y 4 VARILLAS DE 3/8\", ESTRIBOS DE ALAMBRON DE 1/4\" @20CM. HASTA UNA ALTURA DE 3.50 MTS, INCLUYE: ANDAMIOS, CIMBRADO, VIBRADO, CIMBRADO,  MATERIALES,  MANO DE OBRA, HERRAMIENTA Y EQUIPO.","M",294.07,null,null,0]
[null,"DOPI-043","DALA DE DESPLANTE DE  SECCIÓN 15X20 CM. CON CONCRETO F'C=150 KG./CM2  Y 4 VARILLAS DE 3/8\", ESTRIBOS DE ALAMBRON DE 1/4\" @20CM. INCLUYE: CIMBRADO,  DESCIMBRADO, MATERIALES , MANO DE OBRA, HERRAMIENTA Y EQUIPO.","M",175.58,null,null,0]
[null,"DOPI-044","CERRAMIENTOS  DE  SECCIÓN 15X20 CM. CON CONCRETO F'C=150 KG./CM2  Y 4 VARILLAS DE 3/8\", ESTRIBOS DE ALAMBRON DE 1/4\" @20CM. INCLUYE: CIMBRADO,  DESCIMBRADO, MATERIALES , MANO DE OBRA, HERRAMIENTA Y EQUIPO.","M",175.58,null,null,0]
[null,"DOPI-045","BOQUILLA DE 15 A 20 CM DE ANCHO, CON MORTERO CAL - ARENA PROPORCIÓN 1:3, ACABADO REPELLADO, EN APERTURA DE VANOS DE PUERTAS Y VENTANAS, INCLUYE: HERRAMIENTA, PLOMEADO, NIVELADO, DESPERDICIOS, MATERIALES, EQUIPO Y MANO DE OBRA.","M",332.06,null,null,0]
[null,"DOPI-046","FILETES Y BOLEADOS, HECHOS CON MORTERO CEMENTO-ARENA EN PROPORCIÓN 1:3, TANTO INCLINADOS COMO VERTICALES A TIRO DE HILO Y ESCUADRA,  INCLUYE: DESPERDICIOS, ANDAMIOS Y ACARREO DE MATERIALES AL SITIO DE SU UTILIZACIÓN, A CUALQUIER NIVEL.","M",332.06,null,null,0]
[null,"DOPI-047","ELABORACION DE VERTEDERO (LAVATRAPEADORES), CON MEDIDAS APROXIMADAS DE 0.60X0.60  M POR 0.30 M DE ALTO, DE BLOCK O LADRILLO DE LAMA, FORRADO DE AZULEJO INTERIOR Y BOQUILLAS, INCLUYE: APLANADO, CESPOL, DESPERDICIOS, ACARREOS, HABILITADO, TRAZO, NIVELACION, PLOMEO, MATERIALES, MANO DE OBRA, EQUIPO Y HERRAMIENTA.","PZA",1,null,null,0]
[null,"DOPI-048","SUMINISTRO Y ELABORACION DE SARDINEL DE 8 X 8 CM DE ALTURA, ELABORADO A BASE DE LADRILLO DE LAMA. ASENTADO CON CEMENTO-ARENA DE RIO EN PROPORCIÓN 1:3, INCLUYE: MATERIALES, CIMBRA, MANO DE OBRA Y HERRAMIENTA.","M",27.89,null,null,0]
[null,"DOPI-049","FORJADO DE BANQUETÓN DE 15CM DE ALTURA, ELABORADO A BASE DE BLOCK DE JALCRETO CON MEDIDAS 11X14X28 CM. ASENTADO CON CEMENTO-ARENA DE RIO EN PROPORCIÓN 1:3, INCLUYE: MATERIALES, MANO DE OBRA Y HERRAMIENTA.","M2",13.28,null,null,0]
[null,"A.3","ACABADOS",0,0,null,null,{"$f":"SUM(H72:H83)","v":0}]
[null,"DOPI-050","SUMINISTRO Y APLICACIÓN DE PINTURA VINILICA COLOR  DOS MANOS COMO MINIMO, EN BOVEDAS Y FACHADAS EXTERIORES E INTERIORES,  CUALQUIER COLOR, A 3.50 M DE ALTURA, INCLUYE; PREPARACION DEL ÁREA, SELLADO, ANDAMIOS, MATERIAL Y MANO DE OBRA.","M2",3225.79,null,null,{"$f":"E72*F72","v":0}]
[null,"DOPI-051","SUMINISTRO Y APLICACIÓN DE PINTURA ACABADO EPOXICA LINEA PROMAX DE SHERWIN WILLIAMS O SIMILAR A DOS MANOS PARA MURO, DE 0.00 A 3.00 M DE ALTURA, EN CUALQUIER COLOR, LIMPIANDO Y PREPARANDO LA SUPERFICIE, INCLUYE: MATERIALES, ANDAMIOS, MANO DE OBRA, EQUIPO Y HERRAMIENTA.","M2",311.20999999999998,null,null,0]
[null,"DOPI-052","SUMINISTRO Y APLICACIÓN DE PINTURA DE ESMALTE 100 MATE COMEX O SIMILAR, COLOR DEFINIDO POR LA SUPERVISION, EN ESTRUCTURAS METÁLICAS, CARA ABIERTA, A DOS MANOS O HASTA CUBRIR COMPLETAMENTE LA SUPERFICIE, A CUALQUIER NIVEL, INCLUYE: RASPADO Y PREPARACION DE LA SUPERFICIE, LIMPIEZA, MATERIALES, MANO DE OBRA, EQUIPO, HERRAMIENTA Y TODO LO NECESARIO PARA SU CORRECTA EJECUCION.","M2",64.31,null,null,0]
[null,"DOPI-053","SUMINISTRO Y COLOCACIÓN DE PISO PORCELÁNICO DE 60X120 CM, MODELO INFINITY COLLECTION SIMPHONY GREY O SIMILAR, A HUESO, EN ÁREA DE BAÑOS, ASENTADO CON ADHESIVO PORCELÁNICO INCLUYE: HERRAMIENTA, CORTES, DESPERDICIOS, JUNTEADOR BLANCO, MATERIALES, EQUIPO Y  MANO DE OBRA.","M2",439.65,null,null,0]
[null,"DOPI-054","SUMINISTRO Y COLOCACION DE ZOCLO PORCELANICO EN ZOCLO, 7 X 120 CM, MODELO INFINITY COLLECTION SIMPHONY GREY O SIMILAR, A HUESO, ASENTADO CON ADHESIVO PORCELANICO Y JUNTEADOR SIN ARENA: INCLUYE: ACARREO, CORTES, DESPERDICIOS, MATERIALES, MANO DE OBRA, EQUIPO Y HERRAMIENTA.","M",240.41,null,null,0]
[null,"DOPI-055","SUMINISTRO Y COLOCACIÓN DE AZULEJO INTERCERAMIC MOD CEMENTINE ESMALTADO DE 40 X 40 CM, COLOR NEGRO, ASENTADO CON ADHESIVO PORCELÁNICO, INCLUYE: HERRAMIENTA, CORTES, DESPERDICIOS, JUNTEADOR, MATERIALES, EQUIPO Y  MANO DE OBRA.","M2",39.85,null,null,0]
[null,"DOPI-056","SUMINISTRO E INSTALACION DE PISO URETANO CEMENTICIO DE 3MM DE ESPESOR PROMEDIO,  ALTA DURABILIDAD Y RESISTENCIA, APLICACIÓN SOBRE  LOSAS DE CONCRETO NUEVO, INCLUYE: MATERIALES, MANO DE OBRA Y SELLADO.","M2",277.25,null,null,0]
[null,"DOPI-057","SUMINISTRO Y COLOCACION DE AZULEJO BLANCO VIZELADO  MEDIDAS DE 7.5 CM X 30 CM, MARCA DUNE MOD. MANHATAN BLANCO MATE, INCLUYE: ACARREOS, MATERIALES, DESPERDICIOS, MATERIALES, ADHESIVOS, JUNTEO Y MANO DE OBRA.","M2",208.22,null,null,0]
[null,"DOPI-058","SUMINISTRO Y ELABORACIÓN DE PISO DE CONCRETO F’C=200 KG/CM2 ESTAMPADO CON COLOR INTEGRADO A 4% T.M.A. ¾, BOMBEABLE, REFORZADO CON MALLA ELECTRSOLDADA 6X6-10/10 DE 8 CM DE ESPESOR, SELLADO CON BARNIZ MATE O BRILLOSO INCLUYE: CORTES, JUNTA ELASTOMERICA, MATERIAL, MANO DE OBRA, HERRAMIENTA Y CIMBRA.","M2",59.04,null,null,0]
[null,"DOPI-059","SUMINISTRO Y COLOCACIÓN DE CRISTAL FLOTADO DE 6 MM DE ESPESOR,  ASENTADO CON SILICÓN, INCLUYE: CORTES, DESPERDICIOS Y ACARREO DE MATERIALES AL SITIO DE SU UTILIZACIÓN A CUALQUIER NIVEL.","M2",13.28,null,null,0]
[null,"DOPI-060","SUMINISTRO Y COLOCACIÓN DE MAMPARAS MARCA MODUMEX LÍNEA LEEDER M1 MODELO ESTÁNDAR ACABADO SÓLIDO FENÓLICO 12.7 MM COLOR PLATINUM DROPS O SIMILAR, INCLUYE: MATERIALES, MANO DE OBRA, EQUIPO, HERRAJES DE FIJACIÓN Y HERRAMIENTA.","M2",105.1,null,null,0]
[null,"DOPI-061","SUMINISTRO E INSTALACIÓN DE PERSIANAS MODELO DUO WOODLINE COLOR OXFORD , SEMI TRASLUCIDA 100% POLIESTER CON CERTIFICACIÓN AL GRADO DE RESISTENCIA DE LOS TEJIDOS A LA DECORACIÓN ISO B02-2000, INCLUYE: MATERIALES, MANO DE OBRA, EQUIPO, HERRAMIENTA Y MATERIALES DE FIJACIÓN.","M2",7.44,null,null,0]
[null,"A.4","HERRERIA",0,0,null,null,{"$f":"SUM(H85:H88)","v":0}]
[null,"DOPI-062","SUMINISTRO , HABILITADO Y COLOCACION DE HERRERIA ESTRUCTURAL PARA ESCALERAS, PUERTAS, VENTANAS, CANCELES Y PASAMANOS, INCLUYE: FLETES, ACARREOS, CORTES, DESPERDICIOS, SOLDADURAS, PINTURA ANTICORROSIVA ( PRIMER ), MATERIAL Y MANO DE OBRA","KG",1433.49,null,null,{"$f":"E85*F85","v":0}]
[null,"DOPI-063","SUMINISTRO E INSTALACIÓN  DE ACERO ESTRUCTURAL  (ASTM 572-50 ). INCLUYE:  NIVELACIÓN, ELEMENTOS DE FIJACIÓN, CORTES, SOLDADURA, ACARREOS, DESPERDICIO, MATERIAL, MANO DE OBRA, EQUIPO Y HERRAMIENTA.","KG",7907.02,null,null,0]
[null,"DOPI-064","SUMINISTRO Y COLOCACIÓN DE HERRERIA DE ALUMINIO NEGRO CON PERFIL TIPO BOLSA DE 3\" Y CRISTAL CLARO DE 6 MM. INCLUYE: MATERIALES, MANO DE OBRA , EQUIPO, HERRAMIENTA Y SELLADO.","M2",83.91,null,null,0]
[null,"DOPI-065","SUMINISTRO, HABILITADO Y ARMADO DE ACERO DE REFUERZO FY =4200 KG/CM2 DE DIAMETRO  3/8\" (#3) FORMANDO UNA RETÍCULA @ 90 CMS, DISPUESTO EN FORMA DE GAMMA METIDA 10 CM AL FIRME Y CON GANCHITO A CADA 1.00M EN CUADRÍCULA PARA ANCLAR LA NUEVA LOSA, INCLUYE: SUMINISTRO DE MATERIALES, HABILITADO, ARMADO, COLOCACIÓN, ALAMBRE RECOCIDO, GANCHOS, SILLETAS, TRASLAPES, CORTES, DESPERDICIOS, ACARREOS A CUALQUIER DISTANCIA Y CUALQUIER ALTURA, ELEVACIONES, TRABAJOS REALIZADOS A CUALQUIER PROFUNDIDAD, MANO DE OBRA, HERRAMIENTA, MAQUINARIA Y EQUIPO.","KG",332.06,null,null,0]
[null,"A.5","INSTALACION ELECTRICA",0,0,null,null,{"$f":"SUM(H90:H104)","v":0}]
[null,"DOPI-066","SALIDA ELECTRICA PARA CONTACTO DUPLEX POLARIZADO Y/O APAGADOR SENCILLO, OCULTA, CON TUBERIA DE POLIDUCTO DE DIAMETRO DE HASTA 1\", CABLE VINANEL THW-LS 600 V. A 75° C, 90° C, MARCA CONDUCTORES MONTERREY O SIMILAR (VIAKON-PROTOCOLIZADO), CABLE VINANEL 21 THW-LS 600 V. A 75° C, 90° C, MARCA CONDUMEX (CONDUMEX PROTOCOLIZADO), CALIBRE 10 Y 12, CON UN DESARROLLO DE 7.50 MTS, CAJAS DE REGISTRO CUADRADAS, CHALUPAS Y TAPAS DE PVC REFORZADO, CONTACTO Y APAGADOR QUINZIÑO O SIMILAR, TAPA DE ALUMINIO, INCLUYE: HERRAMIENTA, TRAZO, RANURAS, CONEXIÓN A TIERRA, ACCESORIOS, MATERIALES MENORES Y DE CONSUMO, PRUEBAS, DESPERDICIOS Y ACARREO DEL MATERIAL AL SITIO DE SU COLOCACIÓN, A CUALQUIER NIVEL, EQUIPO Y MANO DE OBRA.","SAL",83,null,null,{"$f":"E90*F90","v":0}]
[null,"DOPI-067","SALIDA ELECTRICA PARA LAMPARAS, OCULTA, CON TUBERIA DE POLIDUCTO DE DIAMETRO DE HASTA 1\", CABLE VINANEL THW-LS 600 V. A 75° C, 90° C, MARCA CONDUCTORES MONTERREY O SIMILAR (VIAKON-PROTOCOLIZADO), CABLE VINANEL 21 THW-LS 600 V. A 75° C, 90° C, MARCA CONDUMEX (CONDUMEX PROTOCOLIZADO), CALIBRE 10 Y 12, CON UN DESRROLLO DE 7.50 MTS, CAJAS DE REGISTRO CUADRADAS, CHALUPAS Y TAPAS DE PVC REFORZADO, INCLUYE: HERRAMIENTA, TRAZO, RANURAS, CONEXIÓN A TIERRA, ACCESORIOS, MATERIALES MENORES Y DE CONSUMO, PRUEBAS, DESPERDICIOS Y ACARREO DEL MATERIAL AL SITIO DE SU COLOCACIÓN, A CUALQUIER NIVEL, EQUIPO Y MANO DE OBRA.","SAL",115,null,null,0]
[null,"DOPI-068","SUMINISTRO Y COLOCACIÓN  DE LUMINARIA EMPOTRABLE LED, 42 W,4500 °K, 90-277 V, MONTAJE SOBREPUESTO EN LOSA A 3 M DE ALTURA, CUADRADA CON MEDIDAS APROXIMADAS DE 0.60 X 0.60 X 0.02 M.,  MODELO DOMUS, MARCA TECNOLITE O SIMILAR, INCLUYE: FLETES, ACARREO, ELEVACION, FIJACION, CONEXIONES, PRUEBAS, MATERIALES, MANO DE OBRA, EQUIPO Y HERRAMIENTA.","PZA",49,null,null,0]
[null,"DOPI-069","SUMINISTRO Y COLOCACIÓN  DE LUMINARIA EMPOTRABLE LED 24 W, MONTAJE SOBREPUESTO A 3 M DE ALTURA, CUADRADA CON MEDIDAS APROXIMADAS DE 0.30 X 0.30, MARCA TECNOLITE O SIMILAR, INCLUYE: FLETES, ACARREO, ELEVACION, FIJACION, CONEXIONES, PRUEBAS, MATERIALES, MANO DE OBRA, ANDAMIOS, EQUIPO, HERRAMIENTA Y TODO LO NECESARIO PARA SU CORRECTA EJECUCION.","PZA",14,null,null,0]
[null,"DOPI-070","SUMINISTRO E INSTALACIÓN DE LUMINARIA TIPO ESTANCA DE SOBREPONER O SUSPENDER IMPERMEABLE AL POLVO Y LA HUMEDAD DE DOS LÁMPARAS LED T8 DE 18W, LA  WP2X18. INCLUYE: INSTALACIÓN QUE INCLUYE ACCESORIOS,  ANDAMIOS, ELEVACIONES, HERRAMIENTAS, LIMPIEZA MANO DE OBRA.","PZA",17,null,null,0]
[null,"DOPI-071","SUMINISTRO Y COLOCACIÓN DE LUMINARIAS ARBOTANTES DE PARED EXTERIOR, COLOR NEGRO , MARCA HAMPTON BAY 240 235 O SIMILAR, INCLUYE: FIJACIONES, TAQUETES, ACCESORIOS, RECORTES, MATERIALES, MANO DE OBRA, EQUIPO Y HERRAMIENTA.","PZA",35,null,null,0]
[null,"DOPI-072","SUMINISTRO E INSTALACIÓN DE  CABLE DE COBRE THW CAL. 8, INCLUYE: MATERIALES, MANO DE OBRA, EQUIPO Y HERRAMIENTA.","M",541.26,null,null,0]
[null,"DOPI-073","SUMINISTRO E INSTALACIÓN DE CABLE MONOPOLAR DE COBRE AISLAMIENTO THHW, 600V, CAL. 12 AWG MARCA CONDUMEX O SIMILAR, INCLUYE: HERRAMIENTA, MATERIALES, CONEXIÓN,  PRUEBAS, EQUIPO Y MANO DE OBRA.","M",1082.52,null,null,0]
[null,"DOPI-074","SUMINISTRO Y COLOCACION DE CENTRO DE CARGA SQUARE D QO12, INCLUYE:  MATERIALES, HERRAMIENTA, MANO DE  OBRA, EQUIPO Y PRUEBAS.","PZA",1,null,null,0]
[null,"DOPI-075","SUMINISTRO Y COLOCACIÓN DE INTERRUPTOR TERMOMAGNETICO DE 1X15-40 AMP. INCLUYE: MATERIAL, MANO DE OBRA Y HERRAMIENTA","PZA",15,null,null,0]
[null,"DOPI-076","SALIDA  ELÉCTRICA  PARA ALIMENTACIÓN DE CENTRO DE CARGA  CON  TUBERIA CONDUIT PARED GRUESA DE  1 1/4\", 2 HILOS  CABLE CALIBRE 12, CON UN DESARROLLO  DE HASTA 20 M. INCLUYE:   CAJA,  PLACA,   REGISTROS  Y ACCESORIOS, ANDAMIOS, MATERIALES, EQUIPO,  HERRAMIENTAS   Y MANO DE  OBRA.","SAL",1,null,null,0]
[null,"DOPI-077","SUMINISTRO Y COLOCACION DE TUBERIA POLIDUCTO DE DIAMETRO DE 3/4\", MARCA POLIFLEX O SIMILAR, INCLUYE: CORTES, CONEXIÓN, PRUEBAS, MATERIALES, MANO DE OBRA, EQUIPO Y HERRAMIENTA.","M",120.75,null,null,0]
[null,"DOPI-078","SUMINISTRO E INSTALACIÓN DE VARILLA PARA TIERRA FISICA COPER WELD 5/8\" MCA. MEXIN 3.00 MTS., INCLUYE: SOLDADURAS, 4 MT DE CABLE DESNUDO CAL. 2 , CANALIZACION, VARILLA, CARGAS, ACARREOS, EQUIPOS Y MANO DE OBRA.","PZA",1,null,null,0]
[null,"DOPI-079","SUMINISTRO E INSTALACION DE MUFA CON ROSCA DE 3\",  1 TUBO DE AJUSTE DE 3\" S/COPLE OMEGA O SIMILAR, CONECTOR DE AJUSTE CON OPRESOR DE 3\" INCLUYE: MATERIALES, MANO DE OBRA, HERRAMIENTA Y EQUIPO","PZA",1,null,null,0]
[null,"DOPI-080","SUMINISTRO E INSTALACION DE BASE PARA MEDIDOR 4 TERMINALES, INCLUYE: ACCESORIOS PARA EL MONTAJE, MATERIALES, ANDAMIOS, MANO DE OBRA, EQUIPO Y HERRAMIENTA.","PZA",1,null,null,0]
[null,"A.6","INSTALACION HIDROSANITARIA",0,0,null,null,{"$f":"SUM(H106:H131)","v":0}]
[null,"DOPI-081","SALIDA SANITARIA A MUEBLE, CONSISTENTE EN TUBERÍA Y CONEXIONES DE PVC DE 2\" Y 4\" DE DIÁMETRO, HASTA 3 MTS DE LONGITUD, INCLUYE: DESPERDICIO DE TUBERÍA, LÍNEA DE VENTILACIÓN (DESFOGUE),  COPLES, CODOS, TEES, YEES, REDUCCIONES, REGISTRO SANITARIO, MATERIALES MENORES, FLETES Y ACARREO DE LOS MATERIALES AL SITIO DE SU INSTALACIÓN Y PRUEBAS.","SAL",81,null,null,{"$f":"E106*F106","v":0}]
[null,"DOPI-082","SUMINISTRO Y COLOCACIÓN DE TUBO DE PVC DE 8\" DE DIÁMETRO, INCLUYE: ACARREOS, MATERIALES, MANO DE OBRA, EQUIPO Y HERRAMIENTA.","M",60.38,null,null,0]
[null,"DOPI-083","SUMINISTRO Y COLOCACIÓN DE TUBO DE PVC DE 6\" DE DIÁMETRO, INCLUYE: ACARREOS, MATERIALES, MANO DE OBRA, EQUIPO Y HERRAMIENTA.","M",60.38,null,null,0]
[null,"DOPI-084","SUMINISTRO Y COLOCACIÓN DE TUBO DE PVC SANITARIO DE 4\" DE DIÁMETRO, INCLUYE: ACARREOS, MATERIALES, MANO DE OBRA, EQUIPO Y HERRAMIENTA.","M",132.83000000000001,null,null,0]
[null,"DOPI-085","SUMINISTRO Y COLOCACIÓN DE TUBO DE PVC SANITARIO DE 2\" DE DIÁMETRO, INCLUYE: ACARREOS, MATERIALES, MANO DE OBRA, EQUIPO Y HERRAMIENTA.","M",132.83000000000001,null,null,0]
[null,"DOPI-086","SALIDA HIDRÁULICA DE AGUA FRÍA Y/O CALIENTE, PARA ALIMENTACIÓN A MUEBLE SANITARIO, CONSISTENTE EN TUBERÍA Y CONEXIONES DE CPVC DE 1/2\" A 2\" DE DIÁMETRO CON UN DESARROLLO DE HASTA 5.00 M,  INCLUYE: TRAZO, RANURAS, CÁMARAS CONTRA GOLPE DE ARIETE, CONEXIONES, (COPLES, CODOS, TAPONES, TEES, YEES, REDUCCIONES, ETC),  VÁLVULAS, TUERCAS UNIÓN EN CUADROS DE VÁLVULAS, MATERIALES MENORES Y DE CONSUMO, PEGAMENTOS, ELEMENTOS DE FIJACIÓN, DESPERDICIOS,  HERRAMIENTAS, LIMPIEZA, MANO DE OBRA, PRUEBAS HIDROSTÁTICAS, FLETES Y ACARREO DE LOS MATERIALES AL SITIO DE SU INSTALACIÓN.","SAL",101,null,null,0]
[null,"DOPI-087","SUMINISTRO Y COLOCACION DE TUBERIA DE CPVC DE 3/4\" DE DIAMETRO, INCLUYE: COPLES, PEGAMENTO, MATERIALES, MANO DE OBRA, EQUIPO Y HERRAMIENTA.","M",265.64999999999998,null,null,0]
[null,"DOPI-088","SUMINISTRO Y COLOCACION DE TUBERÍA DE CPVC DE 1/2\" DE DIAMETRO, INCLUYE: CODOS, COPLES, PEGAMENTO, MATERIALES, MANO DE OBRA, EQUIPO Y HERRAMIENTA.","M",265.64999999999998,null,null,0]
[null,"DOPI-089","SUMINISTRO Y COLOCACIÓN DE LLAVE NARIZ ESFERA CON PALANCA DE 1/2\", INCLUYE: HERRAMIENTA, COLOCACIÓN Y MANO DE OBRA.","PZA",18,null,null,0]
[null,"DOPI-090","SUMINISTRO E INSTALACION DE COLADERA CUADRADA  DE ACERO INOXIDABLE, CUERPO DE PVC, MARCA FOSA O SIMILAR, DE 4\" DE DIAMETRO, INCLUYE: VALVULA ANTIOLORES, CONEXIONES, ACCESORIOS, PRUEBAS, MATERIALES, MANO DE OBRA, EQUIPO Y HERAMIENTA.","PZA",21,null,null,0]
[null,"DOPI-091","SUMINISTRO Y COLOCACION DE TUBO Y REGADERA SENCILLA DE CEBOLLA MCA. URREA. INCLUYE: FIJACIONES, ACCESORIOS,  MATERIALES, HERRAMIENTA Y MANO DE OBRA.","PZA",21,null,null,0]
[null,"DOPI-092","SUMINISTRO Y COLOCACION DE MEZCLADORA DE EMPOTRAR MARCA RUGO Y MANERALES PARA REGADERA MOD. 36-i, INCLUYE: MATERIALES, MANO DE OBRA Y HERRAMIENTA","PZA",21,null,null,0]
[null,"DOPI-093","SUMINISTRO Y COLOCACIÓN DE REGISTRO SANITARIO FORJADO DE 0.40 M X 0.60 M X 0.60 M DE PROFUNDIDAD, MEDIDAS INTERIORES, MUROS CON BLOCK 11 X 14 X 28 CM, COLOCADO A SOGA, JUNTEADO CON MORTERO CEMENTO ARENA 1:3, MARCO Y CONTRAMARCO DE ÁNGULO DE 2\" X 1/4\" DE ESPESOR REFORZADA CON VARILLA DE 3/8 A CADA 10 CM. CON CONCRETO DE F´c=150 KG/CM2, LOSA DE PISO DE 8 CM DE CONCRETO F´C= 150 KG/CM2 HECHO EN OBRA ARMADO CON MALLA ELECTROSOLDADA Y APLANADO INTERIOR CON MORTERO CEMENTO ARENA 1:4, INCLUYE: HERRAMIENTA, CIMBRA, DESCIMBRA, MATERIALES, EQUIPO Y MANO DE OBRA.","PZA",18,null,null,0]
[null,"DOPI-094","SUMINISTRO E INSTALACIÓN DE INODORO TIPO ONE PIECE, MODELO RONDO 4.8L ALARGADO, DESALOJO DE 1000G DE COLOR BLANCO, MARCA AMERICAN STANDARD O SIMILAR.  A CUALQUIER NIVEL. INCLUYE: LLAVE ANGULAR, MANGUERA, MATERIAL, HERRAMIENTA, MANO DE OBRA Y ACARREOS.","PZA",18,null,null,0]
[null,"DOPI-095","SUMINISTRO E INSTALACIÓN DE MINGITORIO SECO,MARCA HELVEX MODELO: MG GOBI TDS,COLOR BLANCO, INCLUYE: PIJAS, HERRAMIENTA, COLOCACIÓN, EQUIPO, ELEVACIÓN, CONEXIÓN, PRUEBAS Y MANO DE OBRA.","PZA",3,null,null,0]
[null,"DOPI-096","SUMINISTRO E INSTALACIÓN DE MINGITORIO DE ACERO INOXIDABLE 2.00 M, MARCA AMINOX MODELO: 200-35, COLOR SATIN, INCLUYE: PIJAS, HERRAMIENTA, COLOCACIÓN, EQUIPO, ELEVACIÓN, CONEXIÓN, PRUEBAS Y MANO DE OBRA.","PZA",1,null,null,0]
[null,"DOPI-097","SUMINISTRO E INSTALACIÓN DE LAVABO VENUS EMPOTRABLE CERÁMICO CIRCULAR BLANCO DE 48.9 CM, MARCA ORION, O SIMILAR INCLUYE: MANO DE OBRA, COLOCACIÓN,CESPOL DE LATON ACABADO CROMO BRILLANTE, EQUIPO, HERRAMIENTA Y ACARREOS. EN CUALQUIER NIVEL.","PZA",3,null,null,0]
[null,"DOPI-098","BARRA DE 0.70 MTS. DE ANCHO Y 0.12 MTS. DE ESPESOR CON CONCRETO DE F'c=150 KG/CM2 ARMADA CON VARILLA DE 3/8\" A CADA 15 CM. AMBOS SENTIDOS. INCLUYE: SUMINISTRO Y ELABORACION, TRAZO, NIVELACION, CIMBRA, DESCIMBRA, MATERIAL Y MANO DE OBRA.","M",5.98,null,null,0]
[null,"DOPI-099","SUMINISTRO E INSTALACIÓN DE LLAVE MEZCLADORA PARA LAVABO DUOMANDO HELVEX DE 16 X 16 X 15.5 CM MOD. HM-18 DE ACERO O SIMILAR, INCLUYE: MANGUERAS DE ALIMENTACIÓN, LLAVES DE CONTROL ANGULAR, MANO DE OBRA, COLOCACIÓN,EMPAQUES, EQUIPO, HERRAMIENTA Y ACARREOS.","PZA",3,null,null,0]
[null,"DOPI-100","SUMINISTRO Y COLOCACIÓN DE DISPENSADOR DE JABÓN MARCA JOFEL, MOD.  FUTURA AC-54000 COLOR INOXSATINADO DE ACERO INOXIDABLE MEDIDAS 24 X 14 X 11 CM O SIMILAR, INCLUYE: MATERIALES, MANO DE OBRA, HERRAJES DE FIJACIÓN Y HERRAMIENTA.","PZA",13,null,null,0]
[null,"DOPI-101","SUMINISTRO Y COLOCACIÓN DE DESPACHADOR DE PAPEL HIGIÉNICO MARCA JOFEL, MOD. PH-52002 COLOR TRANSPARENTE EN BASE GRIS O SIMILAR, INCLUYE: MATERIALES, MANO DE OBRA, HERRAJES DE FIJACIÓN Y HERRAMIENTA.","PZA",18,null,null,0]
[null,"DOPI-102","SUMINISTRO E INSTALACION DE DISPENSADOR DE PAPEL HIGIENICO EN ROLLO CONTINUO- KIMBERLY CLARCK, INCLUYE: ANCLAJE, MANO DE OBRA, ACCESORIOS, EQUIPO Y HERRAMIENTA.","PZA",13,null,null,0]
[null,"DOPI-103","SUMINISTRO Y COLOCACIÓN DE ESPEJO FLOTADO RECTANGULAR BISELADO DE 6 MM INCLINACIÓN DE 10°, INCLUYE: MATERIALES MENORES Y DE CONSUMO,  ELEMENTOS DE FIJACION, MARCO DE ALUMINIO DE 2\", VINILO, PIJAS, HERRAMIENTAS, LIMPIEZA Y MANO DE OBRA ESPECIALIZADA.","M2",8.9,null,null,0]
[null,"DOPI-104","SUMINISTRO Y COLOCACION DE LAVADERO DE GRANITO, DE 0.65X0.50 M, INCLUYE: CESPOL, DESPERDICIOS, ACARREOS, HABILITADO, TRAZO, NIVELACION, PLOMEO, MATERIALES, MANO DE OBRA, EQUIPO Y HERRAMIENTA.","PZA",1,null,null,0]
[null,"DOPI-105","SUMINISTRO Y COLOCACION DE CALENTADOR SOLAR DE 30 TUBOS 300 L BAJA PRESION. INCLUYE: ACCESORIOS NECESARIOS PARA SU BUEN FUNCIONAMIENTO, MANO DE OBRA ESPECIALIZADA, HERRAMIENTA Y EQUIPO.","PZA",2,null,null,0]
[null,"DOPI-106","SUMINISTRO E INSTALACION DE TUBERIA DE ACERO GALVANIZADO DE 1 1/4\", INCLUYE: COPLES, CORTES, MATERIAL, HERRAMIENTA Y MANO DE OBRA.","M",43.3,null,null,0]
[null,"A.7","COCINETA",0,0,null,null,{"$f":"SUM(H133:H143)","v":0}]
[null,"DOPI-107","SUMINISTRO E INSTALACIÓN DE TARJA DOBLE SUBMONTAR 100 X 44 CM DE ACERO INOXIDABLE, CALIBRE 22, ACABADO SATINADO. INCLUYE: ACARREO DE MATERIALES A CUALQUIER NIVEL , HERRAMIENTAS PARA INSTALACIÓN, APLICACIÓN DE PEGAMENTO, MANO DE OBRA ESPECIALIZADA, EQUIPO CORTES Y AJUSTES, LIMPIEZAS EN EL LUGAR DE TRABAJO Y RETIROS.","PZA",1,null,null,{"$f":"E133*F133","v":0}]
[null,"DOPI-108","SUMINISTRO E INSTALACIÓN DE TARJA SENCILLA SUBMONTAR 50 X 53 CM DE ACERO INOXIDABLE, CALIBRE 22, ACABADO SATINADO. INCLUYE: ACARREO DE MATERIALES A CUALQUIER NIVEL , HERRAMIENTAS PARA INSTALACIÓN, APLICACIÓN DE PEGAMENTO, MANO DE OBRA ESPECIALIZADA, EQUIPO CORTES Y AJUSTES, LIMPIEZAS EN EL LUGAR DE TRABAJO Y RETIROS.","PZA",2,null,null,0]
[null,"DOPI-109","SUMINISTRO E INSTALACIÓN DE CÉSPOL DE LATÓN MODELO 4209.  INCLUYE: SUMINISTRO, ACARREO DE MATERIALES, HERRAMIENTAS Y MANO DE OBRA.","PZA",5,null,null,0]
[null,"DOPI-110","SUMINISTRO E INSTALACIÓN DE CONTRA CANASTA PARA FREGADERO MODELO 3812 DE ACERO INOXIDABLE.  INCLUYE: MATERIALES, MANO DE OBRA Y HERRAMIENTA.","PZA",5,null,null,0]
[null,"DOPI-111","SUMINISTRO E INSTALACIÓN DE MEZCLADORA DE ACERO INOXIDABLE MODELO 9373 DE URREA.  INCLUYE: 2 MANGUERAS COPLEX, CONEXIONES, ACARREO, HERRAMIENTA Y MANO DE OBRA.","PZA",3,null,null,0]
[null,"DOPI-112","SUMINISTRO E INSTALACIÓN DE CAMPANA TEKA DE PARED PLATA; CON PANEL DE MANDOS PULSANTES, TRES VELOCIDADES, PILOTO INDICATIVO DE FUNCIONAMIENTO, LÁMPARAS INCANDESCENTES, FILTROS METÁLICOS DECORATIVOS DE 5 CAPAS, LAVABLES EN LAVAVAJILLAS, MOTOR DE DOBLE TURBINA, CAPACIDAD DE EXTRACCIÓN MÁXIMA DE 700 M³/H, CAPACIDAD DE EXTRACCIÓN UNE-EN-61591 DE 440 M³/H, NIVEL SONORO (UNE-EN60704-2-13) DE 63 DB(A), CHIMENEA AJUSTABLE A LA ALTURA, FILTRO DE CARBÓN ACTIVO PARA RECICLAJE DEL AIRE. MODEL: DEP 70. INCLUYE: ACARREO DE MATERIALES A CUALQUIER NIVEL , HERRAMIENTAS PARA INSTALACIÓN, MANO DE OBRA ESPECIALIZADA, EQUIPO,FIJACIONES, LIMPIEZAS EN EL LUGAR DE TRABAJO Y TODO LO NECESARIO PARA SU CORRECTA EJECUCIÓN.","PZA",1,null,null,0]
[null,"DOPI-113","SUMINISTRO E INSTALACIÓN DE PARRILLA DE COCCIÓN A GAS TEKA CON 6 QUEMADORES ELABORADA EN ACERO INOXIDABLE; CUENTA CON QUEMADORES DE ALTA EFICIENCIA: 2 DE DOBLE FLAMA, 4,000 W (13,648 BTU); 2 SEMI RÁPIDOS, 1,750 W (5,971BTU) Y 2 AUXILIARES, 1,000 W (3,412 BTU). ADEMÁS, CUENTA CON SEGURIDAD POR TERMOPAR INTEGRADA EN CADA QUEMADOR, SOPORTE WOK Y ENCENDIDO ELECTRÓNICO INTEGRADO EN CADA PERILLA, POTENCIA - 13500W, MODEL: EFX 90.1 6GAIAL2DRCI. INCLUYE: ACARREO DE MATERIALES A CUALQUIER NIVEL , HERRAMIENTAS PARA INSTALACIÓN, MANO DE OBRA ESPECIALIZADA, EQUIPO,FIJACIONES Y LIMPIEZAS EN EL LUGAR DE TRABAJO.","PZA",1,null,null,0]
[null,"DOPI-114","SUMINISTRO E INSTALACION DE VALVULA DE COMPUERTA ROSCADA DE 1/2\", INCLUYE: MATERIALES, ACARREOS, MANO DE OBRA, EQUIPO Y  HERRAMIENTA.","PZA",2,null,null,0]
[null,"DOPI-115","SUMINISTRO E INSTALACIÓN DE TUBERÍA DE ACERO GALVANIZADO CED 40 DE 1/2\", INCLUYE: MATERIALES, MANO DE OBRA, EQUIPO, COPLES Y HERRAMIENTA.","M",7.97,null,null,0]
[null,"DOPI-116","BARRA DE 0.70 m. DE ANCHO Y 0.10 m. DE ESPESOR CON CONCRETO DE F'c=150 KG/CM2 ARMADA CON VARILLA DE 3/8\" A CADA 15 CM. AMBOS SENTIDOS. INCLUYE: SUMINISTRO Y ELABORACION, TRAZO, NIVELACION, CIMBRA, DESCIMBRA, MATERIAL Y MANO DE OBRA.","M",21.25,null,null,0]
[null,"DOPI-117","SUMINISTRO E INSTALACIÓN DE TANQUE ESTACIONARIO BLANCO DE 100 LITROS, MCA. TATSA, A CUALQUIER ALTURA Y/O NIVEL. INCLUYE: ACARREO AL LUGAR DE INSTALACIÓN, ELEVACIONES, VALVULAS, KIT DE INSTALACIÓN, MANO DE OBRA, PRUEBAS Y HERRAMIENTA.","PZA",1,null,null,0]
[null,"A.8","LIMPIEZA",0,0,null,null,{"$f":"SUM(H145:H147)","v":0}]
[null,"DOPI-118","LIMPIEZA GRUESA DE OBRA, INCLUYE: ACARREO A BANCO DE OBRA, MANO DE OBRA, EQUIPO Y HERRAMIENTA.","M2",850.08,null,null,{"$f":"E145*F145","v":0}]
[null,"DOPI-119","CARGA Y ACARREO EN CARRETILLA A 20.00 MT. DE DISTANCIA DE MATERIAL PRODUCTO DE LA EXCAVACION Y/O DEMOLICION.  INCLUYE: HERRAMIENTA MENOR Y MANO DE OBRA. VOLUMEN MEDIDO EN SECCIONES.","M3",145.71,null,null,0]
[null,"DOPI-120","CARGA MECANICA Y RETIRO DE ESCOMBRO A FUERA DE LA OBRA EN CAMION DE VOLTEO, INCLUYE: ABUNDAMIENTO, MANO DE OBRA, EQUIPO Y HERRAMIENTA.","M3",145.71,null,null,0]
[null,"B","REHABILITACION DE MURO DE CONTENCION",null,0,null,null,{"$f":"H149+H154+H159+H173+H175","v":0}]
[null,"B.1","PRELIMINARES",null,0,null,null,{"$f":"SUM(H150:H153)","v":0}]
[null,"DOPI-121","DESHIERBE DE MALEZA Y RAMAS DE HASTA 2 MTS DE ALTURA, INCLUYE: ACOPIO DE MALEZA Y RETIRO DEL PRODUCTO EN CAMION VOLTEO, MANO DE OBRA, EQUIPO Y HERRAMIENTA","M2",332.06,null,null,{"$f":"E150*F150","v":0}]
[null,"DOPI-122","TRAZO Y NIVELACIÓN CON EQUIPO TOPOGRÁFICO DEL TERRENO ESTABLECIENDO EJES Y REFERENCIAS Y BANCOS DE NIVEL, INCLUYE: CRUCETAS, ESTACAS, HILOS, MARCAS Y TRAZOS CON CALHIDRA, MANO DE OBRA, EQUIPO Y HERRAMIENTA.","M2",132.83000000000001,null,null,0]
[null,"DOPI-123","CORTE DE TERRENO A CIELO ABIERTO EN CAJÓN EN MATERIAL TIPO \"II\" CON EQUIPO MECÁNICO PESADO, INCLUYE: AFINE DE FONDO Y TALUDES, NIVELACIÓN, REFERENCIAS, MOVIMIENTOS DE TIERRA (ACARREO INTERNO) CON EQUIPO MECÁNICO HASTA 100 M DE DISTANCIA, VOLUMEN MEDIDO EN SECCIÓN, ABUNDAMIENTO, EQUIPO Y MANO DE OBRA.","M3",66.41,null,null,0]
[null,"DOPI-124","RELLENO EN CEPAS O MESETAS CON MATERIAL PRODUCTO DE LA EXCAVACIÓN, COMPACTADO CON COMPACTADOR DE IMPACTO AL 90% ± 2 DE SU P.V.S.M., PRUEBA AASHTO ESTANDAR, CBR DEL 5% MÍNIMO, EN CAPAS NO MAYORES DE 20 CM, INCLUYE: INCORPORACIÓN DE AGUA NECESARIA, ACARREOS, MANO DE OBRA, EQUIPO Y HERRAMIENTA.","M3",66.41,null,null,0]
[null,"B.2","DEMOLICIONES ",null,0,null,null,{"$f":"SUM(H155:H158)","v":0}]
[null,"DOPI-125","DEMOLICION MECANICA DE MUROS DE MAMPOSTERIA, INCLUYE:MANO DE OBRA, EQUIPO, HERRAMIENTA, ACARREO INTERNO EN CARRETILLA HASTA 20 METROS Y APLILE PARA POSTERIOR RETIRO.","M3",159.38999999999999,null,null,{"$f":"E155*F155","v":0}]
[null,"DOPI-126","RETIRO DE MALLA CICLONICA CON SUS ANCLAJES Y MARCO TUBULAR, INCLUYE: ACARREOS INTERNOS, APILE DEL MATERIAL DONDE INDIQUE LA SUPERVICION, HERRAMIENTAS, MANO DE OBRA, HERRAMIENTA, EQUIPO, LIMPIEZA Y TODO LO NECESARIO PARA SU CORRECTA EJECUCIÓN.","M2",199.24,null,null,0]
[null,"DOPI-127","DEMOLICIÓN DE CONCRETO SIMPLE EN BANQUETAS, POR MEDIOS MECÁNICOS, INCLUYE: ACARREO DEL MATERIAL A BANCO DE OBRA PARA SU POSTERIOR RETIRO Y LIMPIEZA DEL ÁREA DE LOS TRABAJOS, MANO DE OBRA, EQUIPO Y HERRAMIENTA.","M3",99.62,null,null,0]
[null,"DOPI-128","DERRIBO Y DESTOCONADO DE ÁRBOL DE 4.00 A 5.00 M DE ALTURA Y 30 CM DE DIÁMETRO, INCLUYE: PODA CON MOTOSIERRA, HACHA Y MACHETE, CARGA Y RETIRO FUERA DE LA OBRA, MANO DE OBRA Y HERRAMIENTAS NECESARIAS.","PZA",1,null,null,0]
[null,"B.3","ALBAÑILERÍA",null,0,null,null,{"$f":"SUM(H160:H172)","v":0}]
[null,"DOPI-129","EXCAVACIÓN POR MEDIOS MECÁNICOS EN MATERIAL TIPO II, DE 0.00 A -2.00 M DE PROFUNDIDAD, INCLUYE: ACARREO DEL MATERIAL A BANCO DE OBRA A UNA DISTANCIA NO MAYOR A 20 M. PARA SU POSTERIOR RETIRO, MANO DE OBRA, EQUIPO Y HERRAMIENTA. (MEDIDO EN TERRENO NATURAL POR SECCIÓN).","M3",3506.58,null,null,{"$f":"E160*F160","v":0}]
[null,"DOPI-130","CIMENTACIÓN A BASE DE SUELO-CEMENTO, A BASE DE MATERIAL DE BANCO, EN PROPORCIÓN DE 1:10, COMPACTADO CON COMPACTADOR DE IMPACTO EN CAPAS NO MAYORES DE 20 CM AL 95% DE SU P.V.S.M, PRUEBA AASHTO ESTÁNDAR, INCLUYE: HERRAMIENTA, SUMINISTRO DE AGUA PARA LOGRAR HUMEDAD ÓPTIMA, MEZCLADO, TENDIDO, EQUIPO, PRUEBAS DE COMPACTACIÓN, EQUIPO Y MANO DE OBRA. (MEDIDO EN TERRENO NATURAL POR SECCIÓN SEGÚN PROYECTOS.) TRABAJOS EN ESPACIO REDUCIDO.","M3",9.3000000000000007,null,null,0]
[null,"DOPI-131","RELLENO EN CEPAS O MESETAS CON MATERIAL DE BANCO, COMPACTADO AL 90% ± 2 DE SU P.V.S.M., PRUEBA AASHTO ESTANDAR, CBR DEL 5% MÍNIMO, EN CAPAS NO MAYORES DE 20 CM, INCLUYE: INCORPORACIÓN DE AGUA NECESARIA, MANO DE OBRA, EQUIPO Y HERRAMIENTA, MEDIDO EN TERRENO NATURAL POR SECCIÓN SEGÚN PROYECTOS.","M3",706.1,null,null,0]
[null,"DOPI-132","RELLENO EN CEPAS O MESETAS CON MATERIAL PRODUCTO DE LA EXCAVACIÓN, COMPACTADO CON COMPACTADOR DE IMPACTO AL 90% ± 2 DE SU P.V.S.M., PRUEBA AASHTO ESTANDAR, CBR DEL 5% MÍNIMO, EN CAPAS NO MAYORES DE 20 CM, INCLUYE: INCORPORACIÓN DE AGUA NECESARIA, ACARREOS, MANO DE OBRA, EQUIPO Y HERRAMIENTA.","M3",66.41,null,null,0]
[null,"DOPI-133","PLANTILLA DE 5 CM DE ESPESOR DE CONCRETO HECHO EN OBRA DE F´C=100 KG/CM2, INCLUYE: PREPARACIÓN DE LA SUPERFICIE, NIVELACIÓN, MAESTREADO, COLADO, MANO DE OBRA, EQUIPO Y HERRAMIENTA.","M2",92.98,null,null,0]
[null,"DOPI-134","MURO DE CONTENCION DE DE MAMPOSTERÍA DE PIEDRA BRAZA, ASENTADA CON MORTERO CEMENTO-ARENA  EN PROPORCIÓN 1:3, INCLUYE: MATERIALES, DESPERDICIOS, HERRAMIENTAS, LIMPIEZA, MANO DE OBRA Y ACARREO DE MATERIALES AL SITIO DE SU UTILIZACIÓN.","M3",743.82,null,null,0]
[null,"DOPI-135","CIMIENTO DE MAMPOSTERÍA DE PIEDRA BRAZA, ACOMODADA TIPO RENCHIDO ASENTADA CON MORTERO CEMENTO-ARENA  EN PROPORCIÓN 1:3, INCLUYE: MATERIALES, DESPERDICIOS, HERRAMIENTAS, LIMPIEZA, MANO DE OBRA Y ACARREO DE MATERIALES AL SITIO DE SU UTILIZACIÓN.","M3",664.13,null,null,0]
[null,"DOPI-136","SUMINISTRO, HABILITADO Y ARMADO DE ACERO DE REFUERZO FY =4200 KG/CM2 DE DIAMETRO  3/8\" (#3) FORMANDO UNA RETÍCULA @ 90 CMS, DISPUESTO EN FORMA DE GAMMA METIDA 10 CM AL FIRME Y CON GANCHITO A CADA 1.00M EN CUADRÍCULA PARA ANCLAR LA NUEVA LOSA, INCLUYE: SUMINISTRO DE MATERIALES, HABILITADO, ARMADO, COLOCACIÓN, ALAMBRE RECOCIDO, GANCHOS, SILLETAS, TRASLAPES, CORTES, DESPERDICIOS, ACARREOS A CUALQUIER DISTANCIA Y CUALQUIER ALTURA, ELEVACIONES, TRABAJOS REALIZADOS A CUALQUIER PROFUNDIDAD, MANO DE OBRA, HERRAMIENTA, MAQUINARIA Y EQUIPO.","KG",464.89,null,null,0]
[null,"DOPI-137","SUMINISTRO Y COLOCACIÓN DE CONCRETO HECHO EN OBRA F'C=250 KG/CM2 RESISTENCIA NORMAL, INCLUYE: MATERIALES, COLADO, VIBRADO, DESCIMBRA, CURADO,  MANO DE OBRA, EQUIPO Y HERRAMIENTA.","M3 ",6.64,null,null,0]
[null,"DOPI-138","CIMBRA EN DADOS DE CIMENTACIÓN, ACABADO COMÚN, INCLUYE: SUMINISTRO DE MATERIALES, ACARREOS, CORTES, HABILITADO, CIMBRADO, DESCIMBRADO, MANO DE OBRA, LIMPIEZA, EQUIPO Y HERRAMIENTA.","M2",79.7,null,null,0]
[null,"DOPI-139","DALA DE DESPLANTE DE  SECCIÓN 15X15 CM. CON CONCRETO F'C=150 KG./CM2  Y ARMEX 15 X 15 X 4 INCLUYE: CIMBRA,  DESCIMBRADO, MATERIALES , MANO DE OBRA, HERRAMIENTA Y EQUIPO.","M ",13.28,null,null,0]
[null,"DOPI-140","DALA DE CORONA DE  SECCIÓN 15X15 CM. CON CONCRETO F'C=150 KG./CM2  Y ARMEX 15 X 15 X 4 INCLUYE: CIMBRA,  DESCIMBRADO, MATERIALES,  MANO DE OBRA, HERRAMIENTA Y EQUIPO.","M",13.28,null,null,0]
[null,"DOPI-141","SUMINISTRO Y COLOCACIÓN DE CONCRETO HECHO EN OBRA F'C=200 KG/CM2 RESISTENCIA NORMAL, INCLUYE: MATERIALES, COLADO, VIBRADO, DESCIMBRA, CURADO,  MANO DE OBRA, EQUIPO Y HERRAMIENTA.","M3",53.13,null,null,0]
[null,"B.4","MALLA CICLONICA",null,0,null,null,{"$f":"SUM(H174)","v":0}]
[null,"DOPI-142","MALLA CICLON DE 55 X 55 MM. ABERTURA, CAL. 10.5, ALTURA DE POSTES DE 2.50 MTS., ALTURA EFECTIVA 2.00 MT., CONSIDERANDO SEPARACION ENTRE POSTES DE 3.00 MT. INCLUYE: SUMINISTRO Y COLOCACION, MARCO SUPERIOR DE 42 MM. DE DIAMETRO CAL. 20, ALAMBRE GALVANIZADO CAL 10.5 EN REMATE, POSTE DE LINEA CAL. 18 DE 48 MM. DE DIAMETRO, POSTE ESQUINERO DE 60 MM. DE DIAMETRO, POSTERIA Y ALAMBRE GALVANIZADO Y DE PUAS 3 HILOS EN LA PARTE SUPERIOR, TODO DE MATERIAL GALVANIZADO POR IMERSION EN CALIENTE, BAYONETAS, ABRAZADERAS, TORNILLERIA, ETC.","M2",53.13,null,null,{"$f":"E174*F174","v":0}]
[null,"B.5","LIMPIEZA",0,0,null,null,{"$f":"SUM(H176:H178)","v":0}]
[null,"DOPI-143","LIMPIEZA GRUESA DE OBRA, INCLUYE: ACARREO A BANCO DE OBRA, MANO DE OBRA, EQUIPO Y HERRAMIENTA.","M2",664.13,null,null,{"$f":"E176*F176","v":0}]
[null,"DOPI-144","ACARREO EN CARRETILLA ESTACIONES SUBSECUENTES DE 50 MTS DE MATERIAL PRODUCTO DE LA EXCAVACION Y/O DEMOLICION, INCLUYE: MANO DE OBRA Y HERRAMIENTA.","M3",66.41,null,null,0]
[null,"DOPI-145","CARGA MECANICA Y RETIRO DE ESCOMBRO A FUERA DE LA OBRA EN CAMION DE VOLTEO, INCLUYE: ABUNDAMIENTO, MANO DE OBRA, EQUIPO Y HERRAMIENTA.","M3",66.41,null,null,0]
[]
[]
[]
[]
[]
[]
[null,null,"RESUMEN DE PARTIDAS"]
[null,null,{"$f":"C8","v":"Rehabilitación de sanitarios, vestidores y muro de contención, y obra complementaria en el Rastro Municipal, Zapopan, Jalisco."}]
[null,{"$f":"B13","v":0},{"$f":"C13","v":0}]
[null,"A",{"$f":"VLOOKUP(B188,$B$19:$H$178,2,FALSE)","v":"VESTIDORES Y BAÑOS"},null,null,null,null,{"$f":"VLOOKUP(B188,$B$19:$H$178,7,FALSE)","v":0}]
[null,"A.1","PRELIMINARES Y DEMOLICIONES",null,null,null,null,{"$f":"VLOOKUP(B189,$B$20:$H$178,7,FALSE)","v":0}]
[null,"A.2","ALBAÑILERIA",null,null,null,null,0]
[null,"A.3","ACABADOS",null,null,null,null,0]
[null,"A.4","HERRERIA",null,null,null,null,0]
[null,"A.5","INSTALACION ELECTRICA",null,null,null,null,0]
[null,"A.6","INSTALACION HIDROSANITARIA",null,null,null,null,0]
[null,"A.7","COCINETA",null,null,null,null,0]
[null,"A.8","LIMPIEZA",null,null,null,null,0]
[null,"B","REHABILITACION DE MURO DE CONTENCION",null,null,null,null,0]
[null,"B.1","PRELIMINARES",null,null,null,null,0]
[null,"B.2",{"$f":"VLOOKUP(B199,$B$19:$H$178,2,FALSE)","v":"DEMOLICIONES "},null,null,null,null,{"$f":"VLOOKUP(B199,$B$20:$H$178,7,FALSE)","v":0}]
[null,"B.3","ALBAÑILERÍA",null,null,null,null,0]
[null,"B.4","MALLA CICLONICA",null,null,null,null,0]
[null,"B.5","LIMPIEZA",null,null,null,null,0]
[]
[]
[]
[]
[]
[]
[]
[]
[null,"IMPORTE TOTAL CON LETRA",null,null,null,"SUBTOTAL M. N.",null,{"$f":"H188+H197","v":0}]
[null,null,null,null,null,"IVA M. N.",null,{"$f":"H211*0.16","v":0}]
[null,null,null,null,null,"TOTAL M. N.",null,{"$f":"SUM(H211:H212)","v":0}]